fUST/lending_fUST_20260107
["ID","MTS","AMOUNT","RATE_DAILY","PERIOD"]
[400626937,1767750642569,-433.77711538,0.00024541,25]
[400626940,1767750642580,-211.74038418,0.00024541,25]
[400626941,1767750642591,-418.4,0.00024565,2]
[400626943,1767750642602,-2625.47,0.000246,7]
[400626945,1767750642612,-2300.0,0.00024603,2]
[400626947,1767750642624,-900.0,0.00024658,2]
[400626949,1767750642634,-500.0,0.00024658,2]
[400626951,1767750642645,-211.74038418,0.00024686,32]
[400626953,1767750642657,-433.77711538,0.00024686,32]
[400626955,1767750642668,-500.0,0.00024795,2]
[400626958,1767750642680,-3243.31871031,0.00024819,2]
[400626960,1767750642691,-202.0,0.00024821,2]
[400626962,1767750642703,-211.74038418,0.00024831,40]
[400626964,1767750642715,-433.77711538,0.00024831,40]
[400626966,1767750642726,-631130.268203,0.000249,2]
[400626968,1767750642739,-202.0,0.00024919,7]
[400626970,1767750642749,-500.0,0.00024932,2]
[400626972,1767750642760,-202.0,0.00024948,2]
[400626974,1767750642770,-211.74038418,0.00024976,48]
[400626976,1767750642779,-433.77711538,0.00024976,48]
[400626978,1767750642789,-565.35,0.00025,2]
[400626980,1767750642801,-1019.0,0.00025,2]
[400626982,1767750642813,-500.0,0.00025069,2]
[400626984,1767750642825,-2300.0,0.0002511,7]
[400626986,1767750642836,-433.77711538,0.00025121,56]
[400626988,1767750642846,-211.74038418,0.00025121,56]
[400626990,1767750642856,-157.17127242,0.00025132,5]
[400626992,1767750642866,-202.0,0.00025135,2]
[400626994,1767750642878,-2000.0,0.00025138,7]
[400626996,1767750642889,-202.0,0.00025139,2]
[400626998,1767750642900,-341.10205412,0.00025155,2]
[400627000,1767750642910,-202.0,0.00025192,2]
[400627002,1767750642920,-250.0,0.00025205,2]
[400627004,1767750642930,-881.07580657,0.00025205,2]
[400627005,1767750642940,-500.0,0.00025206,2]
[400627007,1767750642950,-211.74038418,0.00025266,63]
[400627009,1767750642960,-433.77711538,0.00025266,63]
[400627011,1767750642971,-2300.0,0.00025285,7]
[400627013,1767750642982,-2300.0,0.00025297,7]
[400627015,1767750642992,-240.213887,0.00025342,2]
[400627017,1767750643002,-500.0,0.00025343,2]
[400627019,1767750643013,-265.0,0.000254,60]
[400627021,1767750643024,-211.74038418,0.00025411,71]
[400627023,1767750643034,-433.77711538,0.00025411,71]
[400627025,1767750643045,-500.0,0.0002548,2]
[400627027,1767750643055,-202.0,0.0002549,2]
[400627029,1767750643065,-202.0,0.00025529,2]
[400627031,1767750643076,-2300.0,0.00025544,7]
[400627033,1767750643087,-211.74038418,0.00025556,79]
[400627035,1767750643098,-433.77711538,0.00025556,79]
[400627037,1767750643108,-18711.41,0.000256,2]
[400627039,1767750643119,-240.42,0.000256,7]
[400627041,1767750643130,-196.01,0.000256,7]
[400627043,1767750643146,-2092.97,0.000256,14]
[400627045,1767750643156,-500.0,0.00025617,2]
[400627047,1767750643169,-1000.0,0.00025637,10]
[400627049,1767750643179,-1000.0,0.00025637,10]
[400627050,1767750643190,-1041.66666667,0.0002564,7]
[400627052,1767750643202,-211.74038418,0.00025701,86]
[400627054,1767750643213,-433.77711538,0.00025701,86]
[400627056,1767750643224,-500.0,0.00025713,7]
[400627058,1767750643235,-500.0,0.00025716,7]
[400627060,1767750643246,-350.0,0.00025753,2]
[400627062,1767750643257,-500.0,0.00025754,2]
[400627065,1767750643268,-202.0,0.00025774,2]
[400627068,1767750643279,-5888.0,0.0002584,2]
[400627071,1767750643290,-211.74038418,0.00025846,94]
[400627074,1767750643301,-433.77711538,0.00025846,94]
[400627077,1767750643311,-202.0,0.00025854,2]
[400627080,1767750643322,-7842.62438078,0.00025872,2]
[400627083,1767750643332,-500.0,0.00025883,7]
[400627085,1767750643343,-509.34709244,0.00025891,2]
[400627086,1767750643353,-202.0,0.00025893,7]
[400627088,1767750643364,-202.0,0.000259,2]
[400627090,1767750643376,-157.17127242,0.0002591,5]
[400627092,1767750643387,-2000.0,0.0002592,7]
[400627094,1767750643398,-1893.91149223,0.00025956,22]
[400627096,1767750643408,-202.0,0.0002597,2]
[400627098,1767750643419,-202.0,0.00025983,7]
[400627100,1767750643430,-211.74038418,0.00025991,102]
[400627102,1767750643441,-433.77711538,0.00025991,102]
[400627104,1767750643453,-2625.47,0.00026,7]
[400627106,1767750643463,-1019.0,0.00026,2]
[400627108,1767750643474,-5888.0,0.00026006,2]
[400627110,1767750643484,-202.0,0.00026049,7]
[400627112,1767750643495,-202.0,0.00026121,2]
[400627114,1767750643506,-211.74038418,0.00026136,110]
[400627116,1767750643517,-216.88855768,0.00026136,110]
[400627118,1767750643527,-418.4,0.00026176,2]
[400627120,1767750643538,-450.0,0.00026301,2]
[400627122,1767750643548,-202.0,0.0002638,7]
[400627124,1767750643559,-174.0,0.00026384,20]
[400627126,1767750643570,-500.0,0.00026386,7]
[400627128,1767750643581,-202.0,0.00026405,2]
[400627130,1767750643592,-565.35,0.000265,2]
[400627132,1767750643602,-5888.0,0.0002653,7]
[400627134,1767750643614,-587.58501506,0.0002661,7]
[400627136,1767750643625,-2300.0,0.0002666,7]
[400627138,1767750643637,-2000.0,0.00026703,7]
[400627140,1767750643649,-202.0,0.00026709,2]
[400627142,1767750643659,-550.0,0.00026849,2]
[400627144,1767750643672,-2300.0,0.00026873,7]
[400627159,1767750643832,-202.0,0.00026884,2]
[400627160,1767750643842,-4535.48053422,0.00026903,2]
[400627162,1767750643852,-202.0,0.00026947,2]
[400627164,1767750643861,-5965.99538281,0.00026973,2]
[400627166,1767750643870,-202.0,0.00026994,2]
[400627168,1767750643879,-184.0,0.00027,7]
[400627169,1767750643888,-311.57025672,0.00027,2]
[400627171,1767750643896,-1246.2810269,0.00027,2]
[400627173,1767750643906,-2804.13231052,0.00027,2]
[400627175,1767750643915,-4985.12410759,0.00027,2]
[400627177,1767750643924,-7789.25641811,0.00027,2]
[400627178,1767750643933,-1019.0,0.00027,2]
[400627180,1767750643942,-1046.6383006,0.00027,2]
[400627182,1767750643952,-4186.55320239,0.00027,2]
[400627183,1767750643961,-2300.0,0.00027017,7]
[400627184,1767750643969,-18711.41,0.000271,2]
[400627185,1767750643978,-240.42,0.000271,7]
[400627186,1767750643986,-196.01,0.000271,7]
[400627187,1767750643995,-2092.97,0.000271,14]
[400627188,1767750644004,-370.62050112,0.00027155,2]
[400627189,1767750644012,-500.0,0.00027164,7]
[400627190,1767750644021,-7842.62438078,0.00027304,2]
[400627191,1767750644030,-2300.0,0.00027317,7]
[400627192,1767750644039,-2149.71532788,0.0002738,25]
[400627193,1767750644047,-500.0,0.00027383,7]
[400627194,1767750644056,-223.83334036,0.00027397,2]
[400627195,1767750644066,-1615.48,0.00027397,2]
[400627196,1767750644075,-650.0,0.00027397,5]
[400627197,1767750644083,-500.0,0.00027397,5]
[400627198,1767750644092,-514.81933417,0.00027397,5]
[400627199,1767750644101,-2625.47,0.000274,7]
[400627200,1767750644110,-2000.0,0.00027485,7]
[400627201,1767750644119,-2300.0,0.00027653,7]
[400627202,1767750644128,-2300.0,0.00027663,7]
[400627203,1767750644137,-418.4,0.00027788,2]
[400627204,1767750644146,-565.35,0.000278,2]
[400627205,1767750644158,-500.0,0.00027815,7]
[400627206,1767750644167,-500.0,0.00027843,7]
[400627207,1767750644176,-2300.0,0.00027892,7]
[400627208,1767750644185,-1000.0,0.00027945,5]
[400627209,1767750644194,-750.0,0.00027945,5]
[400627210,1767750644203,-250.0,0.00027945,5]
[400627211,1767750644212,-500.0,0.00027991,7]
[400627212,1767750644222,-1041.66666667,0.00028,7]
[400627213,1767750644232,-1019.0,0.00028,2]
[400627214,1767750644241,-2300.0,0.00028032,7]
[400627215,1767750644250,-2874.83428113,0.000281,7]
[400627216,1767750644260,-1000.0,0.00028201,30]
[400627217,1767750644269,-1000.0,0.00028201,30]
[400627218,1767750644278,-579.0,0.00028201,30]
[400627219,1767750644288,-2000.0,0.00028267,7]
[400627220,1767750644298,-2300.0,0.00028405,7]
[400627221,1767750644307,-500.0,0.0002844,7]
[400627222,1767750644316,-2300.0,0.0002848,7]
[400627223,1767750644326,-1248.94779673,0.00028488,2]
[400627224,1767750644336,-850.0,0.00028493,5]
[400627225,1767750644345,-1345.06654584,0.00028493,5]
[400627226,1767750644354,-350.0,0.00028493,5]
[400627227,1767750644363,-158.0,0.00028575,30]
[400627228,1767750644372,-18711.41,0.000286,2]
[400627229,1767750644382,-1022.0,0.000286,20]
[400627230,1767750644391,-4076.17169238,0.00028632,2]
[400627231,1767750644401,-1248.94779674,0.00028678,2]
[400627232,1767750644410,-240.42,0.000287,7]
[400627233,1767750644420,-196.01,0.000287,7]
[400627234,1767750644430,-2092.97,0.000287,14]
[400627235,1767750644439,-7842.62438078,0.00028735,2]
[400627236,1767750644448,-151.4684085,0.00028766,4]
[400627237,1767750644457,-500.0,0.00028766,4]
[400627238,1767750644465,-500.0,0.00028766,4]
[400627239,1767750644475,-500.0,0.00028766,4]
[400627240,1767750644484,-514.84070869,0.00028766,4]
[400627241,1767750644493,-500.0,0.00028766,4]
[400627242,1767750644502,-533.88981491,0.00028766,4]
[400627243,1767750644511,-500.0,0.00028766,4]
[400627244,1767750644521,-571.52045381,0.00028766,4]
[400627245,1767750644530,-500.0,0.00028766,4]
[400627246,1767750644539,-500.0,0.00028766,4]
[400627247,1767750644548,-500.0,0.00028766,4]
[400627248,1767750644557,-500.0,0.00028766,4]
[400627249,1767750644566,-500.0,0.00028766,4]
[400627250,1767750644576,-500.0,0.00028766,4]
[400627251,1767750644586,-500.0,0.00028766,4]
[400627252,1767750644595,-500.0,0.00028766,4]
[400627253,1767750644604,-500.0,0.00028766,4]
[400627254,1767750644615,-250.0,0.00028766,4]
[400627255,1767750644624,-290.18475692,0.00028766,4]
[400627256,1767750644634,-500.0,0.00028766,4]
[400627258,1767750644646,-643.77504224,0.00028766,4]
[400627259,1767750644655,-1609.90142912,0.00028766,4]
[400627260,1767750644665,-845.69704541,0.00028767,4]
[400627261,1767750644674,-1615.48,0.00028767,4]
[400627263,1767750644684,-240.213887,0.00028767,60]
[400627264,1767750644693,-2415.87555716,0.00028805,28]
[400627266,1767750644703,-500.0,0.00028812,7]
[400627268,1767750644712,-500.0,0.00028838,7]
[400627270,1767750644722,-500.0,0.00028891,7]
[400627272,1767750644732,-2300.0,0.00028898,7]
[400627274,1767750644741,-164388.70303456,0.000289,7]
[400627276,1767750644751,-2625.47,0.000289,7]
[400627278,1767750644760,-890.13787622,0.00029,2]
[400627280,1767750644770,-1041.66666667,0.00029,7]
[400627282,1767750644779,-1019.0,0.00029,2]
[400627284,1767750644788,-2460.21567599,0.00029013,4]
[400627286,1767750644797,-950.0,0.00029041,5]
[400627288,1767750644807,-450.0,0.00029041,5]
[400627290,1767750644817,-2000.0,0.00029049,7]
[400627292,1767750644826,-400.13894811,0.00029155,2]
[400627294,1767750644835,-500.0,0.00029276,7]
[400627296,1767750644844,-2300.0,0.00029332,7]
[400627298,1767750644853,-418.4,0.00029399,3]
[400627300,1767750644863,-1050.0,0.00029589,5]
[400627302,1767750644872,-550.0,0.00029589,5]
[400627305,1767750644886,-8056.10717916,0.00029605,4]
[400627307,1767750644895,-500.0,0.00029698,7]
[400627308,1767750644905,-2000.0,0.00029831,7]
[400627310,1767750644915,-188.67967802,0.00029833,4]
[400627311,1767750644924,-2300.0,0.00029857,7]
[400627313,1767750644933,-500.0,0.0002997,7]
[400627315,1767750644943,-412.68505795,0.0003,10]
[400627316,1767750644952,-9240.53972338,0.0003,7]
[400627317,1767750644961,-17929.07697112,0.0003,2]
[400627318,1767750644971,-32947.0653373,0.0003,3]
[400627320,1767750644980,-684.43602892,0.0003,30]
[400627321,1767750644989,-1125.0,0.0003,5]
[400627322,1767750644998,-165.46,0.0003,5]
[400627323,1767750645008,-300.0,0.0003,60]
[400627324,1767750645017,-269.64837879,0.0003,2]
[400627325,1767750645026,-14007.66400589,0.0003,7]
[400627326,1767750645036,-1041.66666667,0.0003,3]
[400627327,1767750645046,-1019.0,0.0003,7]
[400627328,1767750645055,-6638.75147276,0.00030041,4]
[400627329,1767750645065,-210.20532748,0.0003007,2]
[400627331,1767750645074,-2300.0,0.00030124,7]
[400627333,1767750645083,-1615.48,0.00030136,6]
[400627335,1767750645093,-1150.0,0.00030137,5]
[400627337,1767750645102,-650.0,0.00030137,5]
[400627339,1767750645112,-500.0,0.00030137,15]
[400627341,1767750645121,-261.65588748,0.00030137,120]
[400627343,1767750645130,-7842.62438078,0.00030166,2]
[400627345,1767750645143,-2300.0,0.00030177,7]
[400627346,1767750645152,-2300.0,0.00030183,7]
[400627347,1767750645162,-2300.0,0.00030216,7]
[400627348,1767750645171,-2691.89533437,0.00030229,30]
[400627349,1767750645182,-18711.41,0.000303,2]
[400627350,1767750645191,-240.42,0.000304,7]
[400627351,1767750645200,-196.01,0.000304,7]
[400627352,1767750645211,-2092.97,0.000304,14]
[400627353,1767750645223,-2625.47,0.000304,7]
[400627354,1767750645232,-2300.0,0.00030473,7]
[400627355,1767750645242,-995.3526357,0.00030495,7]
[400627356,1767750645251,-2000.0,0.00030575,10]
[400627357,1767750645261,-2000.0,0.00030614,7]
[400627358,1767750645270,-2000.0,0.00030659,10]
[400627359,1767750645280,-2000.0,0.00030668,10]
[400627360,1767750645289,-2000.0,0.00030677,10]
[400627362,1767750645298,-1299.19626571,0.00030685,5]
[400627363,1767750645307,-500.0,0.00030685,15]
[400627364,1767750645316,-750.65512167,0.00030685,5]
[400627365,1767750645326,-379.31,0.0003074,2]
[400627366,1767750645337,-169.0,0.00030767,42]
[400627367,1767750645346,-689.7,0.00030958,30]
[400627368,1767750645356,-3761.70945867,0.0003096,7]
[400627369,1767750645365,-187.43102881,0.00031,120]
[400627370,1767750645374,-172.604613,0.00031,120]
[400627371,1767750645384,-188.78673028,0.00031,120]
[400627372,1767750645393,-194.20318295,0.00031,120]
[400627373,1767750645402,-172.33135591,0.00031,120]
[400627374,1767750645413,-198.36643638,0.00031,120]
[400627375,1767750645424,-163.4725449,0.00031,120]
[400627376,1767750645433,-721.64697953,0.00031,120]
[400627377,1767750645442,-1041.66666667,0.00031,10]
[400627378,1767750645451,-185.65429275,0.00031,120]
[400627379,1767750645461,-160.0,0.00031,14]
[400627380,1767750645470,-1019.0,0.00031,7]
[400627381,1767750645480,-418.4,0.00031011,4]
[400627382,1767750645490,-1000.0,0.00031021,30]
[400627383,1767750645499,-1000.0,0.00031021,30]
[400627384,1767750645508,-262.0,0.00031021,30]
[400627385,1767750645518,-429.6573951,0.00031155,2]
[400627386,1767750645527,-500.0,0.00031233,15]
[400627387,1767750645537,-2000.0,0.00031396,7]
[400627388,1767750645546,-689.7,0.00031506,31]
[400627389,1767750645556,-1615.48,0.00031506,8]
[400627390,1767750645566,-7842.62438078,0.00031598,2]
[400627391,1767750645575,-2977.33881259,0.00031653,32]
[400627392,1767750645584,-500.0,0.00031781,15]
[400627393,1767750645593,-15155.94856204,0.00031798,2]
[400627394,1767750645602,-187.43102881,0.000319,120]
[400627395,1767750645612,-172.604613,0.000319,120]
[400627396,1767750645621,-188.78673028,0.000319,120]
[400627397,1767750645630,-194.20318295,0.000319,120]
[400627398,1767750645640,-172.33135591,0.000319,120]
[400627399,1767750645649,-198.36643638,0.000319,120]
[400627400,1767750645658,-163.4725449,0.000319,120]
[400627401,1767750645667,-18905.48192827,0.000319,2]
[400627402,1767750645677,-163.65081324,0.000319,120]
[400627403,1767750645686,-721.64697953,0.000319,120]
[400627404,1767750645695,-18711.41,0.000319,2]
[400627405,1767750645704,-185.65429275,0.000319,120]
[400627406,1767750645714,-200.64404451,0.00032,2]
[400627407,1767750645723,-869.88,0.00032,60]
[400627408,1767750645732,-689.7,0.00032054,32]
[400627409,1767750645742,-240.42,0.000321,7]
[400627410,1767750645751,-196.01,0.000321,7]
[400627411,1767750645760,-2092.97,0.000321,14]
[400627412,1767750645770,-500.0,0.0003216,2]
[400627413,1767750645779,-2000.0,0.00032178,7]
[400627414,1767750645789,-2625.47,0.000322,7]
[400627415,1767750645798,-500.0,0.00032329,15]
[400627416,1767750645807,-870.0,0.00032366,30]
[400627417,1767750645816,-895.0,0.00032366,30]
[400627418,1767750645826,-284.0,0.00032366,30]
[400627419,1767750645836,-2000.0,0.000324,120]
[400627420,1767750645845,-689.7,0.00032602,33]
[400627421,1767750645854,-418.4,0.00032622,5]
[400627422,1767750645863,-565.35,0.000327,2]
[400627423,1767750645873,-1615.48,0.00032876,120]
[400627424,1767750645882,-500.0,0.00032877,30]
[400627425,1767750645891,-49790.58,0.00032877,10]
[400627426,1767750645900,-41492.15,0.00032877,10]
[400627427,1767750645909,-198.36643638,0.000329,120]
[400627428,1767750645919,-163.4725449,0.000329,120]
[400627429,1767750645930,-721.64697953,0.000329,120]
[400627430,1767750645939,-185.65429275,0.000329,120]
[400627431,1767750645948,-151.0,0.000329,31]
[400627432,1767750645958,-151.0,0.000329,31]
[400627433,1767750645967,-151.0,0.000329,31]
[400627434,1767750645977,-151.528573,0.000329,31]
[400627435,1767750645987,-153.879722,0.000329,31]
[400627436,1767750645999,-2000.0,0.0003296,7]
[400627437,1767750646008,-699.526823,0.00033,120]
[400627438,1767750646017,-7842.62438078,0.00033029,2]
[400627439,1767750646026,-3271.81974751,0.00033078,34]
[400627440,1767750646035,-300.0,0.00033123,2]
[400627441,1767750646044,-300.0,0.00033123,2]
[400627442,1767750646054,-300.0,0.00033123,2]
[400627443,1767750646063,-300.0,0.00033123,2]
[400627444,1767750646072,-300.0,0.00033123,2]
[400627445,1767750646082,-300.0,0.00033123,2]
[400627446,1767750646091,-300.0,0.00033123,2]
[400627447,1767750646100,-300.0,0.00033123,2]
[400627448,1767750646108,-300.0,0.00033123,2]
[400627449,1767750646118,-300.0,0.00033123,2]
[400627450,1767750646127,-300.0,0.00033123,2]
[400627451,1767750646135,-300.0,0.00033123,2]
[400627452,1767750646144,-300.0,0.00033123,2]
[400627453,1767750646158,-300.0,0.00033123,2]
[400627454,1767750646167,-300.0,0.00033123,2]
[400627455,1767750646177,-300.0,0.00033123,2]
[400627456,1767750646187,-300.0,0.00033123,2]
[400627457,1767750646197,-300.0,0.00033123,2]
[400627458,1767750646207,-300.0,0.00033123,2]
[400627459,1767750646217,-300.0,0.00033123,2]
[400627460,1767750646227,-300.0,0.00033123,2]
[400627461,1767750646236,-300.0,0.00033123,2]
[400627462,1767750646246,-300.0,0.00033123,2]
[400627464,1767750646255,-300.0,0.00033123,2]
[400627465,1767750646264,-689.7,0.0003315,34]
[400627466,1767750646274,-300.0,0.00033151,2]
[400627467,1767750646283,-300.0,0.00033151,2]
[400627468,1767750646292,-300.0,0.00033151,2]
[400627469,1767750646301,-300.0,0.00033151,2]
[400627470,1767750646310,-300.0,0.00033151,2]
[400627471,1767750646319,-300.0,0.00033151,2]
[400627472,1767750646328,-300.0,0.00033151,2]
[400627473,1767750646338,-300.0,0.00033151,2]
[400627474,1767750646347,-459.17584209,0.00033155,120]
[400627475,1767750646356,-3382.78818163,0.00033164,4]
[400627476,1767750646366,-161.86525392,0.000332,117]
[400627477,1767750646377,-161.86525391,0.000332,117]
[400627478,1767750646386,-161.86525391,0.000332,117]
[400627479,1767750646395,-1695.5655,0.0003322,30]
[400627480,1767750646404,-2145.0,0.00033333,2]
[400627481,1767750646413,-1365.0,0.00033333,2]
[400627482,1767750646422,-628.0,0.00033333,2]
[400627483,1767750646433,-714.0,0.00033333,2]
[400627484,1767750646442,-500.0,0.00033425,30]
[400627485,1767750646451,-38000.0,0.00033554,10]
[400627486,1767750646461,-151.0,0.00033554,31]
[400627487,1767750646470,-151.0,0.00033554,31]
[400627488,1767750646480,-151.0,0.00033554,31]
[400627490,1767750646490,-235.834759,0.00033554,31]
[400627491,1767750646499,-151.0,0.00033554,31]
[400627493,1767750646508,-193.081788,0.00033554,31]
[400627495,1767750646518,-151.0,0.00033554,31]
[400627497,1767750646528,-151.0,0.00033554,31]
[400627499,1767750646537,-151.0,0.00033554,31]
[400627501,1767750646547,-153.895656,0.00033554,31]
[400627503,1767750646556,-255.270679,0.00033554,31]
[400627506,1767750646566,-151.0,0.00033554,31]
[400627507,1767750646575,-2600.536544,0.00033554,31]
[400627509,1767750646585,-151.0,0.00033554,31]
[400627511,1767750646594,-2600.536544,0.00033554,31]
[400627514,1767750646603,-151.0,0.00033554,31]
[400627516,1767750646612,-2600.536544,0.00033554,31]
[400627518,1767750646621,-151.0,0.00033554,31]
[400627520,1767750646632,-2600.536544,0.00033554,31]
[400627522,1767750646642,-151.0,0.00033554,31]
[400627524,1767750646651,-151.0,0.00033562,31]
[400627526,1767750646660,-151.0,0.00033562,31]
[400627528,1767750646670,-151.0,0.00033562,31]
[400627530,1767750646679,-151.0,0.00033562,31]
[400627532,1767750646688,-151.0,0.00033562,31]
[400627533,1767750646698,-160.185086,0.00033562,31]
[400627536,1767750646707,-151.0,0.00033562,31]
[400627538,1767750646718,-151.0,0.00033562,31]
[400627540,1767750646727,-161.405471,0.00033562,31]
[400627542,1767750646737,-164.731913,0.00033562,31]
[400627544,1767750646747,-38000.0,0.00033563,10]
[400627546,1767750646756,-38000.0,0.00033571,10]
[400627547,1767750646765,-38000.0,0.0003358,10]
[400627549,1767750646774,-38000.0,0.00033589,10]
[400627563,1767750646893,-19216.14087235,0.0003359,10]
[400627565,1767750646903,-18711.41,0.000336,14]
[400627567,1767750646912,-689.7,0.00033698,35]
[400627569,1767750646923,-210.0,0.00033699,5]
[400627571,1767750646933,-2000.0,0.00033742,7]
[400627573,1767750646942,-1020.0,0.000338,60]
[400627575,1767750646951,-721.64697953,0.000339,120]
[400627577,1767750646961,-517.09,0.00033973,30]
[400627579,1767750646971,-180.37692737,0.00034,120]
[400627581,1767750646981,-240.42,0.00034,7]
[400627583,1767750646992,-196.01,0.00034,7]
[400627585,1767750647001,-2092.97,0.00034,30]
[400627587,1767750647011,-2625.47,0.00034,7]
[400627589,1767750647020,-155.0,0.00034055,66]
[400627591,1767750647029,-511.29,0.000342,2]
[400627593,1767750647039,-418.4,0.00034233,6]
[400627595,1767750647048,-689.7,0.00034246,36]
[400627597,1767750647058,-1615.48,0.00034246,120]
[400627599,1767750647067,-565.35,0.000343,2]
[400627601,1767750647077,-7842.62438078,0.0003446,2]
[400627603,1767750647086,-3574.99286239,0.00034502,36]
[400627605,1767750647096,-270.0,0.00034521,5]
[400627607,1767750647106,-2000.0,0.00034525,7]
[400627610,1767750647115,-152.72,0.00034602,60]
[400627611,1767750647125,-173.03,0.00034602,60]
[400627614,1767750647137,-9094.59,0.00034602,60]
[400627615,1767750647148,-171.33,0.00034602,60]
[400627618,1767750647158,-10000.0,0.00034602,2]
[400627620,1767750647167,-152.72,0.00034702,60]
[400627622,1767750647179,-173.03,0.00034702,60]
[400627623,1767750647188,-9094.59,0.00034702,60]
[400627626,1767750647197,-171.33,0.00034702,60]
[400627627,1767750647207,-689.7,0.00034794,37]
[400627629,1767750647218,-152.72,0.00034802,60]
[400627631,1767750647227,-173.03522826,0.00034802,60]
[400627633,1767750647237,-9094.59,0.00034802,60]
[400627635,1767750647246,-171.33,0.00034802,60]
[400627637,1767750647256,-721.64697953,0.000349,120]
[400627639,1767750647265,-152.72,0.00034902,60]
[400627641,1767750647275,-9094.59,0.00034902,60]
[400627643,1767750647285,-171.33,0.00034902,60]
[400627645,1767750647294,-214.277153,0.00035,120]
[400627647,1767750647303,-10764.18994116,0.00035,2]
[400627649,1767750647312,-660.50119086,0.00035,2]
[400627651,1767750647322,-185.37771349,0.00035,120]
[400627653,1767750647331,-425.30402685,0.00035,15]
[400627655,1767750647340,-194.46103846,0.00035,120]
[400627657,1767750647349,-1000.0,0.00035,14]
[400627659,1767750647362,-152.72,0.00035002,60]
[400627661,1767750647373,-9094.59,0.00035002,60]
[400627663,1767750647382,-171.33,0.00035002,60]
[400627665,1767750647392,-152.72,0.00035102,60]
[400627667,1767750647401,-9094.59,0.00035102,60]
[400627669,1767750647411,-171.33,0.00035102,60]
[400627671,1767750647422,-488.69428908,0.00035155,120]
[400627673,1767750647432,-152.72,0.00035202,60]
[400627675,1767750647442,-9094.60162415,0.00035202,60]
[400627677,1767750647452,-171.33,0.00035202,60]
[400627679,1767750647462,-152.72,0.00035302,60]
[400627681,1767750647472,-171.33,0.00035302,60]
[400627683,1767750647481,-2000.0,0.00035307,7]
[400627685,1767750647490,-689.7,0.00035342,38]
[400627687,1767750647500,-330.0,0.00035342,5]
[400627689,1767750647509,-511.29,0.000354,2]
[400627691,1767750647519,-152.72,0.00035402,60]
[400627693,1767750647528,-171.33,0.00035402,60]
[400627695,1767750647537,-152.72,0.00035502,60]
[400627697,1767750647546,-171.33,0.00035502,60]
[400627699,1767750647555,-383.0466369,0.00035534,30]
[400627701,1767750647564,-376.8200359,0.00035534,30]
[400627703,1767750647573,-376.8200359,0.00035534,30]
[400627705,1767750647582,-376.8200359,0.00035534,30]
[400627707,1767750647591,-376.8200359,0.00035534,30]
[400627709,1767750647601,-376.8200359,0.00035534,30]
[400627711,1767750647610,-376.8200359,0.00035534,30]
[400627713,1767750647620,-376.8200359,0.00035534,30]
[400627715,1767750647630,-376.8200359,0.00035534,30]
[400627717,1767750647639,-376.8200359,0.00035534,30]
[400627718,1767750647648,-2000.0,0.00035582,15]
[400627719,1767750647657,-152.72,0.00035602,60]
[400627720,1767750647666,-171.33,0.00035602,60]
[400627721,1767750647675,-1615.48,0.00035616,120]
[400627722,1767750647684,-180.8964439,0.00035616,2]
[400627723,1767750647693,-182.28,0.00035702,60]
[400627724,1767750647702,-152.72,0.00035702,60]